Cogmind - Beta 12 @@@ ROGUE MODE // 2024.02.12 @ 13:05:07 Player: Remuluson2 Result: Destroyed by G-47 Trooper with Particle Gun Performance ------------- Evolutions (1) 500 Regions Visited (3) 600 Robots Destroyed (73) 365 Value Destroyed (1538) 1538 Prototype IDs (1) 20 Alien Tech Used (0) 0 Bonus (57) 57 TOTAL SCORE: 3080 Bonus ------- High Alert Combat Kills 57 Cogmind --------- Core Integrity 0/400 Matter 286/300 Energy 99/100 System Corruption 0% Temperature Cool (9) Movement Core (50) Location -9/Mines Parts ------- > --- POWER (1) -------- (None) > --- PROPULSION (4) --- (None) > --- UTILITY (2) ------ (None) > --- WEAPON (2) ------- (None) > --- INVENTORY (5) ---- Aluminum Leg Sensor Array Signal Interpreter Improved Assault Rifle Datajack Peak State ------------ > --- POWER ------------ Improved Ion Engine > --- PROPULSION ------- Aluminum Leg Aluminum Leg Aluminum Leg Improved Aluminum Leg > --- UTILITY ---------- Machine Analyzer Hacking Suite > --- WEAPON ----------- Autogun Heavy Battle Rifle > --- INVENTORY -------- Sensor Array Signal Interpreter Improved Assault Rifle Datajack Mining Laser [Rating: 19] Favorites ----------- Power Ion Engine Engine Ion Engine Propulsion Aluminum Leg Leg Aluminum Leg Utility Small Storage Unit Device Seismic Detector Storage Small Storage Unit Processor Machine Analyzer Hackware Hacking Suite Protection Light Armor Plating Weapon Particle Cannon Energy Gun Beam Rifle Energy Cannon Particle Cannon Ballistic Gun Autogun Special Weapon Mining Laser Special Melee Weapon Datajack Build | -11 -10 -9 -9 ------- Run | Jun Mat Mat Min Slots Evolved 2 | . . 2 . Power . | . . . . Propulsion 2 | . . 2 . Utility . | . . . . Weapon . | . . . . Parts Attached 67 | 8 11 39 9 Power 6 | 1 1 4 . Engine 6 | 1 1 4 . Core . | . . . . Reactor . | . . . . Propulsion 25 | 2 2 15 6 Treads . | . . . . Leg 25 | 2 2 15 6 Wheel . | . . . . Hover . | . . . . Flight . | . . . . Utility 14 | 2 6 5 1 Device 8 | 1 5 2 . Storage 1 | 1 . . . Processor 2 | . . 2 . Hackware 1 | . . 1 . Protection 2 | . 1 . 1 Artifact . | . . . . Weapon 22 | 3 2 15 2 Energy Gun 3 | 1 . 2 . Energy Cannon 4 | . 2 2 . Ballistic Gun 10 | 2 . 6 2 Ballistic Cannon . | . . . . Launcher . | . . . . Special Weapon 1 | . . 1 . Impact Weapon . | . . . . Slashing Weapon . | . . . . Piercing Weapon . | . . . . Special Melee Weapon 4 | . . 4 . Unidentified Prototypes . | . . . . Parts Lost 7 | . . 2 5 Power 1 | . . 1 . Propulsion 3 | . . . 3 Utility 1 | . . 1 . Weapon 2 | . . . 2 Highest Loss Streak 4 | . . 2 4 To Critical Strikes . | . . . . Average Slot Usage (%) 97 | . 99 96 94 Engine 11 | . 14 11 11 Leg 38 | . 28 41 42 Device 6 | . 12 5 . Storage 8 | . 14 8 . Processor 2 | . . 1 10 Hackware 6 | . . 6 11 Energy Gun 2 | . . 3 . Energy Cannon 6 | . 8 6 . Ballistic Gun 12 | . 18 9 18 Special Melee Weapon 1 | . . 1 . Naked Turns 2 | . . . 2 Heaviest Build 19 | 14 19 19 14 Greatest Support 43 | 20 20 43 43 Greatest Overweight (x) 1 | 1 . . . Average Overweight (x) . | . . . . Largest Inventory Capacity 8 | 8 8 8 5 Average Capacity 7 | 6 8 7 5 Most Carried 8 | 6 8 8 5 Average Carried 6 | 3 7 6 4 Final Capacity 8 | 8 8 5 5 Final Carried 8 | 6 8 5 5 Class Distribution -------------------- 85% | Scavenger-Mutant 14% | Mutant Dominant Class ---------------- Mutant | -10/Materials Scavenger-Mutant | -9/Materials Scavenger-Mutant | -9/Mines Resources | -11 -10 -9 -9 ----------- Run | Jun Mat Mat Min Matter Collected 1745 | 251 330 853 311 Remotely . | . . . . Salvage Created 2476 | 99 463 1618 296 Parts 166 | 9 29 114 14 Haulers Intercepted 1 | . . 1 . Recyclers Shooed 16 | . 4 11 1 Parts Field Recycled . | . . . . Retrieved Matter . | . . . . Parts Self-Destructed . | . . . . Prevented . | . . . . Kills | -11 -10 -9 -9 ------- Run | Jun Mat Mat Min Combat Hostiles Destroyed 49 | . 11 25 13 Guns 36 | . 8 15 13 Cannons 13 | . 3 10 . Classes Destroyed 13 | 2 4 6 1 Worker 3 | . 1 2 . Builder 2 | . . 2 . Tunneler 5 | 2 . 3 . Hauler 1 | . . 1 . Recycler 5 | 1 1 3 . Mechanic 1 | . . 1 . Operator 4 | . . 4 . Watcher 7 | . 2 5 . Swarmer 18 | . 6 6 6 Grunt 20 | . 5 12 3 Duelist 1 | . . 1 . Sentry 6 | . . 6 . Assembled 4 | . . . 4 Best Kill Streak 5 | 2 4 5 4 Combat Bots Only 4 | . 3 3 4 Max Kills in Single Turn 2 | 1 1 1 2 Gunslinging . | . . . . Exploded . | . . . . Melee . | . . . . Uniques/NPCs Destroyed . | . . . . Combat | -11 -10 -9 -9 -------- Run | Jun Mat Mat Min Damage Taken 2382 | . 489 820 1073 Core 477 | . 76 104 297 Absorbed by Shields . | . . . . Regen/Repaired (Parts) 9 | . . 9 . Core Remaining (%) 84 | 100 69 . . Volleys Fired 218 | 14 52 120 32 Largest 2 | 2 2 2 2 Hottest 136 | 40 136 136 56 Shots Fired 386 | 28 104 202 52 Gun 306 | 28 78 148 52 Cannon 76 | . 26 50 . Launcher . | . . . . Special 4 | . . 4 . Kinetic 288 | 28 78 130 52 Thermal 98 | . 26 72 . Explosive . | . . . . Electromagnetic . | . . . . Robot Hit Streak 16 | 9 8 16 4 Robot Miss Streak 5 | 2 5 5 5 Penetration Max . | . . . . Secondary Targets . | . . . . Shots Hit Robots 225 | 17 53 129 26 Core Hits 104 | 4 21 61 18 Critical Kills 1 | . 1 . . Critical Parts Destroyed . | . . . . Critical Strikes 4 | . 1 3 . Burn 3 | . . 3 . Destroy 1 | . 1 . . Melee Attacks 3 | . . 3 . Impact . | . . . . Slashing . | . . . . Piercing . | . . . . Sneak Attacks 3 | . . 3 . Combat Hostiles . | . . . . Follow-up Attacks . | . . . . Damage Inflicted 3751 | 191 783 2280 497 Guns 2661 | 191 449 1540 481 Cannons 876 | . 258 618 . Explosions 42 | . 42 . . Melee . | . . . . Ramming 172 | . 34 122 16 Kinetic 2454 | 191 449 1333 481 Thermal 1125 | . 300 825 . Explosive . | . . . . Electromagnetic . | . . . . Impact . | . . . . Slashing . | . . . . Piercing . | . . . . Highest Corruption . | . . . . Average Corruption . | . . . . Corruption Purged . | . . . . Corruption Blocked . | . . . . Overload Shots . | . . . . Overflow Damage 39 | . 22 17 . Projectiles 37 | . 20 17 . Explosions 2 | . 2 . . Melee . | . . . . Knockbacks 1 | . . 1 . Impact 1 | . . 1 . Kinetic . | . . . . Secondary . | . . . . Self-Inflicted Damage . | . . . . Shots . | . . . . Rammed . | . . . . Targets Rammed 40 | . 8 26 6 Kicked 40 | . 8 26 6 Crushed . | . . . . Highest Temperature 225 | . 225 198 64 Average Temperature 42 | . 70 37 16 Received Heat Transfer 657 | . 105 285 267 Siege Activations . | . . . . Robots Corrupted . | . . . . Combat Hostiles . | . . . . Parts Fried . | . . . . Impact Corruptions . | . . . . Robots Melted . | . . . . Combat Hostiles . | . . . . Parts Melted 1 | . 1 . . Heat Transferred 2307 | . 494 1813 . Parts Sabotaged . | . . . . Parts Stolen . | . . . . Parts Stripped . | . . . . Power Chain Reactions . | . . . . Missiles Intercepted . | . . . . Alert | -11 -10 -9 -9 ------- Run | Jun Mat Mat Min Peak Influence 622 | 15 221 622 463 Initial 242 | . 9 45 242 Average 247 | 3 99 291 304 Maximum Alert Level 2 | . 1 2 2 Low Security (%) 39 | 100 89 29 . Level 1 43 | . 10 44 92 Level 2 17 | . . 25 7 Level 3 . | . . . . Level 4 . | . . . . Level 5 . | . . . . High Security . | . . . . Max Security . | . . . . Squads Dispatched 9 | . 2 5 2 Investigation 2 | . 1 1 . Extermination . | . . . . Reinforcement 6 | . 1 4 1 Assault 1 | . . . 1 Garrison . | . . . . Intercept . | . . . . Searches Triggered . | . . . . Construction Impeded 1 | . . . 1 Haulers Reinforced . | . . . . Active Scanning Responses . | . . . . Cargo Convoy Interrupts . | . . . . Stealth | -11 -10 -9 -9 --------- Run | Jun Mat Mat Min Distress Signals 6 | . 2 4 . Communications Jammed . | . . . . Distress Signals . | . . . . Times Spotted 104 | . 18 52 34 Peak Tracking Total 9 | . 4 4 9 Tactical Retreats 11 | . 3 4 4 Traps | -11 -10 -9 -9 ------- Run | Jun Mat Mat Min Traps Triggered 3 | . 2 1 . Indirectly . | . . . . Trap Hack Attempts 130 | . . 130 . Triggered . | . . . . Disarmed . | . . . . Reprogrammed 11 | . . 11 . Reused 7 | . . 7 . Traps Extracted . | . . . . Installed . | . . . . Triggered 7 | . . 7 . Machines | -11 -10 -9 -9 ---------- Run | Jun Mat Mat Min Machines Disabled 4 | . 2 2 . Max in Single Turn 2 | . 2 1 . Machines Repaired . | . . . . Machines Sabotaged . | . . . . Overloaded Fab Kills . | . . . . Hacking | -11 -10 -9 -9 --------- Run | Jun Mat Mat Min Machines Accessed 13 | . 6 7 . Terminals 10 | . 5 5 . Fabricators . | . . . . Repair Stations 2 | . 1 1 . Recycling Units . | . . . . Scanalyzers 1 | . . 1 . Garrison Access . | . . . . Total Hacks 30 | . 14 16 . Successful 16 | . 8 8 . Failed 14 | . 6 8 . Catastrophic 4 | . 2 2 . Database Lockouts . | . . . . Manual 15 | . 10 5 . Terminals 24 | . 12 12 . Fabricators . | . . . . Repair Stations 5 | . 2 3 . Recycling Units . | . . . . Scanalyzers 1 | . . 1 . Garrison Access . | . . . . Terminal Hacks 13 | . 8 5 . Robot Analysis 3 | . 3 . . Machine Index 1 | . . 1 . Terminal Index 2 | . 1 1 . Alert Level 1 | . 1 . . Dispatch Records 1 | . . 1 . Maintenance Status 1 | . 1 . . Security Status 1 | . . 1 . Patrol Status 1 | . . 1 . Hauler Manifests 1 | . 1 . . Registered Components 1 | . 1 . . Fabricator Hacks . | . . . . Repair Station Hacks 2 | . . 2 . Scan Component 1 | . . 1 . Repair 1 | . . 1 . Recycling Unit Hacks . | . . . . Scanalyzer 1 | . . 1 . Insert Component 1 | . . 1 . Garrison Access Hacks . | . . . . Unauthorized Hacks . | . . . . Terminals . | . . . . Fabricators . | . . . . Repair Stations . | . . . . Recycling Units . | . . . . Scanalyzers . | . . . . Garrison Access . | . . . . Data Cores Recovered 1 | . . 1 . Used . | . . . . Hacking Detections 11 | . 5 6 . Full Trace Events 1 | . . 1 . Feedback Events . | . . . . Feedback Blocked . | . . . . Robot Schematics Acquired . | . . . . Robots Built . | . . . . Authchips . | . . . . Time . | . . . . Total Robot Build Rating . | . . . . Part Schematics Acquired . | . . . . Parts Built . | . . . . Authchips . | . . . . Time . | . . . . Total Part Build Rating . | . . . . Parts Repaired 1 | . . 1 . Time 26 | . . 26 . Parts Recycled . | . . . . Recycled Matter . | . . . . Retrieved Matter . | . . . . Retrieved Components . | . . . . Parts Scanalyzed . | . . . . Part Schematics Acquired . | . . . . Parts Damaged . | . . . . Bothacking | -11 -10 -9 -9 ------------ Run | Jun Mat Mat Min Used RIF Installer . | . . . . Robots Hacked 3 | . . 3 . Non-combat 3 | . . 3 . Combat . | . . . . Robot Hacks Applied 3 | . . 3 . no_distress 1 | . . 1 . find_recycling 1 | . . 1 . find_station 1 | . . 1 . Relay Couplers Released . | . . . . Fabnet Peak Effective % . | . . . . Robots Rewired . | . . . . Allies Hacked . | . . . . Hacks Repelled . | . . . . Allies | -11 -10 -9 -9 -------- Run | Jun Mat Mat Min Total Allies 1 | . . . 1 Largest Group 1 | . . . 1 Highest-Rated Group 31 | . . . 31 Highest-Rated Ally 31 | . . . 31 Total Orders . | . . . . Ally Attacks 1 | . . . 1 Total Damage 21 | . . . 21 Kills . | . . . . Allies Corrupted . | . . . . Allies Melted . | . . . . Intel | -11 -10 -9 -9 ------- Run | Jun Mat Mat Min Robot Analysis Total 3 | . 3 . . Derelict Logs Recovered 3 | . . . 3 Drone Launches . | . . . . Drone Recoveries . | . . . . Exploration | -11 -10 -9 -9 ------------- Run | Jun Mat Mat Min Turns Passed 4672 | 128 929 2947 668 Spaces Moved 2514 | 60 549 1479 426 Core 12 | 8 . . 4 Treads . | . . . . Legs 2502 | 52 549 1479 422 Wheels . | . . . . Hover . | . . . . Flight . | . . . . Fastest Speed 50 | 50 120 120 50 Average Speed 119 | 114 120 120 119 Slowest Speed 120 | 120 120 120 120 Overloaded Moves . | . . . . Propulsion Burnouts . | . . . . Robots Hopped . | . . . . Cave-ins Triggered . | . . . . Exploration Rate (%) 54 | 4 84 67 63 Regions Visited 3 Branch Regions 1 Pre-discovered Areas 1 | . . . 1 Known Exits Taken . | . . . . Unknown Exits Taken 3 | 1 1 1 . Scrap Searched 2 | . . . 2 Spaces Dug 4 | . . 4 . Terrain Destroyed 7 | . 2 4 1 Melee . | . . . . Projectile 5 | . . 4 1 AOE 2 | . 2 . . Terrain Rammed . | . . . . Walls Destroyed . | . . . . Machines Disabled . | . . . . Actions | -11 -10 -9 -9 --------- Run | Jun Mat Mat Min Total 3805 | 90 726 2450 539 Wait 754 | 2 78 615 59 Move 2511 | 59 548 1478 426 Hop . | . . . . Pick Up 31 | 7 12 12 . Fast Attach 23 | 6 4 9 4 Attach 9 | 1 1 6 1 Detach 2 | . 1 . 1 Swap 35 | 1 6 24 4 Drop 49 | . 16 27 6 Fire 218 | 14 52 120 32 Melee 3 | . . 3 . Ram . | . . . . Kick 40 | . 8 26 6 Crush . | . . . . Escape Stasis . | . . . . Rewire . | . . . . Trap 130 | . . 130 . Miscellaneous . | . . . . Route ------- -11/Junkyard -10/Materials (discovered 5 exits: *Mat x3 / [*Min x2]) -9/Materials -9/Mines History --------- Turn | Location | Event 14 | -11/Junkyard | Discovered new exit (range 15) 129 | -11/Junkyard | Entered Materials 309 | -10/Materials | Build established: Mutant 495 | -10/Materials | Discovered new exit (range 15) 515 | -10/Materials | Discovered new exit (range 16) 620 | -10/Materials | Discovered new exit (range 16) 777 | -10/Materials | Discovered new exit (range 7) 858 | -10/Materials | Discovered new exit (range 8) 1019 | -10/Materials | Build established: Scavenger-Mutant 1058 | -10/Materials | Entered another Materials area 1058 | -9/Materials | Evolved 2 slots: Propulsion x2 2922 | -9/Materials | Repaired Datajack 3041 | -9/Materials | Discovered new exit (range 14) 4005 | -9/Materials | Entered Mines 4011 | -9/Mines | Learned Materials stockpile data 4051 | -9/Mines | Met a Derelict bent on vengeance 4132 | -9/Mines | A weapon hastily lodged in a ceiling crevice suddenly fell to the ground 4222 | -9/Mines | Learned 4 Materials zone layouts 4335 | -9/Mines | Learned location of Zion (-6) 4383 | -9/Mines | Met a Derelict testing a Signal Generator 4402 | -9/Mines | Assembled infested the area 4421 | -9/Mines | Core integrity fell below 50% 4493 | -9/Mines | Core integrity fell below 20% 4538 | -9/Mines | Lost 4 parts (2n2w) 4671 | -9/Mines | Released all parts (6) 4673 | -9/Mines | Destroyed by G-47 Trooper with Particle Gun Last Messages --------------- 04531_ Acquired Aluminum Leg. 04549_ T-07 Excavator destroyed. 04575_ K-01 Serf collects debris. 04582_ as-29979 destroyed. 04584_ Acquired 14 matter. 04586_ K-01 Serf collects debris. 04596_ Acquired 17 matter. 04597_ Acquired 12 matter. 04620_ Acquired 10 matter. 04632_ as-62779 destroyed. 04633_ Discarded Machine Analyzer. 04635_ Acquired Imp. Light Armor Plating. 04640_ Aluminum Leg destroyed. 04666_ as-91353 destroyed. 04670_ Dropped Mining Laser. 04671_ Released Imp. Light Armor Plating. 04671_ Released Aluminum Leg. 04671_ Released Hacking Suite. 04671_ Released Imp. Ion Engine. 04671_ Released Aluminum Leg. Map ----- +----------------------------------------------------+ | | | | | | | | | | | | | | | | | | | | | | | ?????????????????????????????????????????????????? | | ?????????????????????????????????????????????????? | | ??????????????????####???????????????????????##### | | ?????????????????## #???###??????#######???# # | | ????????????????## ### ##????## ##??# = | | ???????????????## ##???# #??# %= | | ???????????????# #???# #?## [ | | ???????????????# #????# #?# | | ????????????????# #?????# #?# # | | ??????????????# =* #???????# #??## ## | | ##????????????# =|! #????????## ##??## #? | | ????????????## = ##?????????## ##### #? | | ? ????????????## ##?????????## ## #? | | ? #????????????### l #??????#### ## #? | | ?# #######???????##g @##????## # #? | | ??# ##########g ##??## ## ####? | | ???# i #?## ## ### #???? | | ??????## ### ##### ### #???? | | ?????## ## ## ## ##???# #???? | | ?????# % ###b### ## #????##### #???? | | ????## % ### #?#### ##????????# #???? | | ##### # #??## ##?????????# #???? | | # % ##!%! #####??# ##??????????# #???? | | * # # #??????# #???????????#*#???? | | |% ## #### ##?????## ##?#####?????#%#???? | | # #??## ############?## ##?####!#???? | | ## ##????# # # ##?????## #?# !|#???? | | ??## #?????# # ##????# ### %###???? | | ?????# ###?????# #????# ## #?????? | | ?????# ????????## =%## ##????# # #?????? | | ?????# ?????????# ! # #?????# #?????? | | ?????# "?????????## [* #####???## #?????? | | ?????#"%?????????# #???## #?????? | | ?????# "?????????# # ##??## #?????? | | ?????# ????????## # %=#???# """ #?????? | | ?????# ?????????# # ##%##### """ #?????? | | ????? ?????????# ####* % """ #?????? | | ????? ?????????# #### ###### ##?????? | | ??????#?????????# ####### ####??????? | +----------------------------------------------------+ Best States ------------- Heat Dissipation 39 Energy Generation 12 Energy Capacity 265 Matter Stores 300 Matter Capacity 300 Sight Range 18 Robot Scan Range 14 Terrain Scan Density 10 Armor Coverage 150 Evasion (%) 55 Offensive Hacking 10 Item Schematics ----------------- None Robot Schematics ------------------ None Fabricated ------------ Nothing Alien Tech Used ----------------- None Achievements -------------- None Challenges ------------ None Game ------ Seed CompactElectronBlade Manual? 0 Play Time 01:07:39 Cumulative 8.6 hours Start 2024.02.12 @ 11:47:38 End 2024.02.12 @ 13:05:07 Sessions 1 Manual Loads 0 Difficulty Rogue Special Mode None Game No. 6 Rogue 6 Adventurer 0 Explorer 0 Win Type - Total 0 Types 0/0/0/0/0/0/0/0/0 Lore% 7 Gallery% 9 Achievement% 11 Wizard Run 0 Options --------- ASCII 0 Keyboard 0 Movement Numpad Keybinds 0 Fullscreen 1 Font 18/SmallcapsGlow Map View 76x50 Tactical HUD 1 Map Filters NONE Filters NONE Steam 1 RUN: 8352d862-5bb4-42d4-b62b-cbb88144c100